[Event "4th Sinquefield Cup 2016"]
[Site "Saint Louis"]
[Date "2016.08.05"]
[Round "1"]
[White "Topalov, Veselin"]
[Black "Svidler, Peter"]
[Result "1-0"]
[ECO "C88"]
[WhiteElo "2761"]
[BlackElo "2751"]
[Annotator ""]
[PlyCount "55"]
[EventDate "2016.??.??"]
[EventCountry "USA"]
[SourceTitle "playchess.com"]
[Source "ChessBase"]
[TimeControl "40/7200:3600+30"]

1. e4 {(4s)} e5 {(9s)} 2. Nf3 {(4s)} Nc6 {(6s)} 3. Bb5 {(8s)} a6 {(4s)} 4. Ba4
{(4s)} Nf6 {(6s)} 5. O-O {(14s)} Be7 {(5s)} 6. Re1 {(6s)} b5 {(5s)} 7. Bb3 {
(3s)} O-O {(7s)} 8. a4 {(7s)} b4 {(6s)} 9. d3 {(6s)} d6 {(45s)} 10. a5 {(18s)}
Be6 {(442s)} 11. Bxe6 {(9s)} fxe6 {(4s)} 12. Nbd2 {(8s)} d5 {(946s)} 13. c3 {
( 106s)} Bd6 {(2085s)} 14. d4 {(275s)} bxc3 {(277s)} 15. bxc3 {(49s)} exd4 {
(187s)} 16. cxd4 {(671s)} dxe4 {(95s)} 17. Nxe4 {(11s)} Bb4 {(5s)} 18. Bd2 {
(715s)} Nxe4 {(24s)} 19. Rxe4 {(22s)} Qd5 {(7s)} 20. Bxb4 {(284s)} Qxe4 {(38s)}
21. Bxf8 {(10s)} Rxf8 {(4s)} 22. Rc1 {(232s)} h6 {(917s)} 23. Qd2 {(752s)} Rb8
{(612s)} 24. Qe3 {(202s)} Qd5 {(27s)} 25. h3 {[#] (502s)} Rb4 {(147s) A
massive blindness that loses material and the game.} 26. Qc3 {(229s)} Nxd4 {
(179s)} 27. Qxb4 {(12s)} Ne2+ {(188s)} 28. Kh1 {(28s)} ({Svidler resigned after
} 28. Kh1 {understanding Topalov had seen the win too.} Nxc1 {and White wins
the knight by force.} 29. Qb8+ Kh7 (29... Kf7 30. Qxc7+ {and the knight falls
as well.}) 30. Qb1+ Nd3 31. Ne1 {and that is that.}) 1-0

[Event "4th Sinquefield Cup 2016"]
[Site "Saint Louis"]
[Date "2016.08.05"]
[Round "1"]
[White "Giri, Anish"]
[Black "Vachier-Lagrave, Maxime"]
[Result "1/2-1/2"]
[ECO "B90"]
[WhiteElo "2769"]
[BlackElo "2819"]
[Annotator ""]
[PlyCount "93"]
[EventDate "2016.??.??"]
[EventCountry "USA"]
[SourceTitle "playchess.com"]
[Source "ChessBase"]
[TimeControl "40/7200:3600+30"]

1. e4 {(3s)} c5 {(4s)} 2. Nf3 {(4s)} d6 {(3s)} 3. d4 {(4s)} cxd4 {(4s)} 4. Nxd4 {(3s)} Nf6 {(7s)} 5.
Nc3 {(2s)} a6 {(6s)} 6. Be3 {(4s)} Ng4 {(6s)} 7. Bc1 {(3s)} Nf6 {(4s)} 8. f3 {(3s)} e5 {(6s)} 9. Nb3 {(4
s)} Be6 {(32s)} 10. Be3 {(17s)} Be7 {(39s)} 11. Qd2 {(48s)} O-O {(9s)} 12. O-O-O {(4s)} Nbd7 {(18s)}
13. g4 {(6s)} b5 {(4s)} 14. g5 {(4s)} b4 {(4s)} 15. gxf6 {(4s)} bxc3 {(5s)} 16. Qxc3 {(4s)} Nxf6 {(10
s)} 17. Na5 {(2s)} Rc8 {(70s)} 18. Nc6 {(17s)} Qe8 {(8s)} 19. Nxe7+ {(5s)} Qxe7 {(8s)} 20. Qa5 {(34s)}
Rc6 {(7s)} 21. Kb1 {(78s)} Rfc8 {(127s)} 22. Rd2 {(26s)} Nh5 {(340s)} 23. Rg1 {(60s)} Qh4 {(1386s)}
24. Be2 {(1444s)} Nf4 {(29s)} 25. Bd1 {(229s)} f5 {(693s)} 26. exf5 {(1142s)} Bxf5 {(12s)} 27.
Ka1 {(144s)} d5 {(1269s)} 28. c3 {(177s)} Rg6 {(13s)} 29. Rxg6 {(682s)} hxg6 {(12s)} 30. Bxf4 {(57
s)} Qxf4 {(609s)} 31. Qxd5+ {(23s)} Kh7 {(15s)} 32. Bb3 {(733s)} a5 {(82s)} 33. a4 {(431s)} Re8 {(42
s)} 34. Ka2 {(656s)} Be6 {(93s)} 35. Qc6 {(155s)} Bxb3+ {(242s)} 36. Kxb3 {(4s)} Rb8+ {(11s)} 37.
Kc2 {(4s)} Rxb2+ {(4s)} 38. Kxb2 {(3s)} Qxd2+ {(8s)} 39. Kb3 {(10s)} Qxh2 {(254s)} 40. Qd5 {(0s)}
Qe2 {(0s)} 41. Qxa5 {(287s)} Qd1+ {(148s)} 42. Kb2 {(248s)} Qd2+ {(12s)} 43. Kb3 {(36s)} Qd1+ {(5s)}
44. Kb2 {(79s)} Qd2+ {(13s)} 45. Ka3 {(24s)} Qc1+ {(9s)} 46. Kb4 {(116s)} Qb1+ {(4s)} 47. Ka3 {(46
s)} 1/2-1/2

[Event "4th Sinquefield Cup 2016"]
[Site "Saint Louis"]
[Date "2016.08.05"]
[Round "1"]
[White "So, Wesley"]
[Black "Nakamura, Hikaru"]
[Result "1-0"]
[ECO "E06"]
[WhiteElo "2771"]
[BlackElo "2791"]
[Annotator ""]
[PlyCount "75"]
[EventDate "2016.??.??"]
[EventCountry "USA"]
[SourceTitle "playchess.com"]
[Source "ChessBase"]
[TimeControl "40/7200:3600+30"]

1. d4 {(4s)} Nf6 {(7s)} 2. c4 {(7s)} e6 {(5s)} 3. Nf3 {(6s)} d5 {(7s)} 4. g3 {(3s)} Be7 {(5s)} 5. Bg2 {(
15s)} O-O {(13s)} 6. O-O {(6s)} dxc4 {(3s)} 7. Ne5 {(6s)} Nc6 {(8s)} 8. Nxc6 {(7s)} bxc6 {(3s)} 9. Na3
{(5s)} Bxa3 {(3s)} 10. bxa3 {(6s)} Ba6 {(4s)} 11. Qd2 {(6s)} Rb8 {(35s)} 12. Qa5 {(30s)} Qc8 {(12s)}
13. a4 {(13s)} Rd8 {(62s)} 14. Ba3 {(7s)} Rxd4 {(46s)} 15. Rfb1 {(18s)} Rb6 {(114s)} 16. Bc5 {(9s)}
Rd7 {(83s)} 17. Rd1 {(10s)} h6 {(788s)} 18. Rxd7 {(737s)} Nxd7 {(18s)} 19. Bxb6 {(3s)} cxb6 {(26s)}
20. Qd2 {(11s)} c5 {(555s)} 21. Rd1 {(1100s)} Nf6 {(25s)} 22. Kf1 {(23s)} Kh7 {(1014s)} 23. Qc2+
{(644s)} Kg8 {(25s)} 24. Qd2 {(645s)} Kh7 {(15s)} 25. Qd8 {(142s)} Qxd8 {(44s)} 26. Rxd8 {(5s)} c3 {(
5s)} 27. Ke1 {(5s)} Bc4 {(537s)} 28. Kd1 {(317s)} Bxa2 {(295s)} 29. Kc2 {(7s)} Bc4 {(506s)} 30. e3
{(763s)} b5 {(974s)} 31. Kxc3 {(165s)} a6 {(104s)} 32. Ra8 {(261s)} Nd5+ {(1060s)} 33. Bxd5 {(10s)}
exd5 {(74s)} 34. a5 {(570s)} b4+ {(66s)} 35. Kd2 {(7s)} Bf1 {(119s)} 36. Rc8 {(225s)} c4 {(18s)} 37.
Rb8 {(5s)} b3 {(28s)} 38. Kc3 {(26s)} 1-0

[Event "4th Sinquefield Cup 2016"]
[Site "Saint Louis"]
[Date "2016.08.05"]
[Round "1"]
[White "Ding, Liren"]
[Black "Aronian, Levon"]
[Result "1/2-1/2"]
[ECO "D37"]
[WhiteElo "2755"]
[BlackElo "2792"]
[Annotator ""]
[PlyCount "61"]
[EventDate "2016.??.??"]
[EventCountry "USA"]
[SourceTitle "playchess.com"]
[Source "ChessBase"]
[TimeControl "40/7200:3600+30"]

1. d4 {(5s)} Nf6 {(9s)} 2. c4 {(4s)} e6 {(10s)} 3. Nf3 {(7s)} d5 {(13s)} 4. Nc3 {(4s)} Nbd7 {(12s)} 5.
Bg5 {(121s)} h6 {(33s)} 6. Bh4 {(24s)} Be7 {(7s)} 7. e3 {(149s)} O-O {(20s)} 8. Rc1 {(160s)} c5 {(12s)}
9. dxc5 {(773s)} dxc4 {(108s)} 10. Bxc4 {(323s)} Nxc5 {(18s)} 11. O-O {(24s)} a6 {(5s)} 12. Nd4 {(
1235s)} Nce4 {(29s)} 13. Nxe4 {(390s)} Nxe4 {(5s)} 14. Bxe7 {(4s)} Qxe7 {(5s)} 15. Qc2 {(76s)} Nf6
{(22s)} 16. Bb3 {(95s)} Rb8 {(625s)} 17. e4 {(323s)} Rd8 {(292s)} 18. Rfd1 {(313s)} e5 {(66s)} 19.
Nf5 {(47s)} Bxf5 {(23s)} 20. exf5 {(31s)} Rxd1+ {(261s)} 21. Rxd1 {(5s)} e4 {(374s)} 22. Qc3 {(120
s)} Rd8 {(490s)} 23. Rxd8+ {(50s)} Qxd8 {(11s)} 24. h3 {(96s)} h5 {(185s)} 25. Qe5 {(820s)} b5 {(340
s)} 26. g3 {(146s)} Qd7 {(261s)} 27. g4 {(277s)} hxg4 {(77s)} 28. hxg4 {(7s)} Nxg4 {(92s)} 29. Qxe4
{(17s)} Nf6 {(23s)} 30. Qa8+ {(42s)} Kh7 {(33s)} 31. Qh1+ {(6 Qd5s)} 1/2-1/2

[Event "4th Sinquefield Cup 2016"]
[Site "Saint Louis"]
[Date "2016.08.05"]
[Round "1"]
[White "Anand, Viswanathan"]
[Black "Caruana, Fabiano"]
[Result "1/2-1/2"]
[ECO "C15"]
[WhiteElo "2770"]
[BlackElo "2807"]
[Annotator ""]
[PlyCount "89"]
[EventDate "2016.??.??"]
[EventCountry "USA"]
[SourceTitle "playchess.com"]
[Source "ChessBase"]
[TimeControl "40/7200:3600+30"]

1. e4 {(3s)} e6 {(5s)} 2. d4 {(27s)} d5 {(5s)} 3. Nc3 {(5s)} Bb4 {(6s)} 4. exd5
{(176s)} exd5 {(11s)} 5. Bd3 {(7s)} Nf6 {(114s)} 6. Nge2 {(42s)} O-O {(37s)} 7.
O-O {(66s)} c6 {(52s)} 8. Bg5 {(200s)} h6 {(189s)} 9. Bh4 {(50s)} Re8 {(54s)}
10. f3 {(232s)} Nbd7 {(198s)} 11. Qd2 {(362s)} Nf8 {(381s)} 12. Rae1 {(314s)}
Bd7 {(398s)} 13. a3 {(149s)} Be7 {(1010s)} 14. Bf2 {(685s)} Ng6 {(183s)} 15.
Bg3 {( 196s)} Nh5 {(538s)} 16. Bxg6 {(57s)} fxg6 {(5s)} 17. Be5 {(19s)} Bh4 {
(207s)} 18. Rd1 {(229s)} Bg5 {(949s)} 19. f4 {(384s)} Be7 {(231s)} 20. h3 {
(190s)} Be6 {(482s)} 21. Kh2 {(249s)} Nf6 {(210s)} 22. Nc1 {(231s)} h5 {(419s)}
23. Nd3 {(178s)} Bf5 {(6s)} 24. Ne2 {(321s)} Ne4 {(144s)} 25. Qe3 {(86s)} h4 {
(9s)} 26. Rc1 {(343s)} Rc8 {(358s)} 27. c3 {(423s)} Qb6 {(174s)} 28. b4 {(248s)
} Bf6 {(107s)} 29. Nc5 {(97s)} Nxc5 {(74s)} 30. bxc5 {(22s)} Qb2 {(69s)} 31.
Ng1 {(63s)} b6 {(114s)} 32. Nf3 {( 259s)} bxc5 {(68s)} 33. dxc5 {(59s)} Be4 {
(40s)} 34. Rce1 {(394s)} Re7 {(186s)} 35. Bxf6 {(103s)} gxf6 {(2s)} 36. Nxh4 {
(39s)} Rce8 {(87s)} 37. Qg3 {(390s)} Rg7 {(2s)} 38. Ra1 {(33s)} g5 {(47s)} 39.
fxg5 {(18s)} Rxg5 {(2s)} 40. Qf2 {(0s)} Qxc3 {(0s)} 41. Qxf6 {(268s)} Qg3+ {
(425s)} 42. Kg1 {[#] (10s) Black chooses to force the draw in a cute but
unavoidable windmill. Many hoped he would continue on with a less forcing move
as it was felt there was no danger in playing on.} Qxg2+ {(278s)} 43. Nxg2 {
(5s)} Rxg2+ {(3s)} 44. Kh1 {(7s)} Rf2+ {(3s)} 45. Kg1 {(7s)} 1/2-1/2

[Event "4th Sinquefield Cup 2016"]
[Site "Saint Louis"]
[Date "2016.08.06"]
[Round "2"]
[White "Caruana, Fabiano"]
[Black "Topalov, Veselin"]
[Result "1/2-1/2"]
[ECO "C84"]
[WhiteElo "2807"]
[BlackElo "2761"]
[Annotator "Albert Silver"]
[PlyCount "82"]
[EventDate "2016.??.??"]
[EventCountry "USA"]
[SourceTitle "playchess.com"]
[Source "ChessBase"]
[TimeControl "40/7200:3600+30"]

1. e4 {(3s)} e5 {(5s)} 2. Nf3 {(4s)} Nc6 {(4s)} 3. Bb5 {(4s)} a6 {(5s)} 4. Ba4
{(8s)} Nf6 {(7s)} 5. O-O {(9s)} Be7 {(10s)} 6. d3 {(102s)} b5 {(26s)} 7. Bb3 {
(4s)} d6 {(21s)} 8. a4 {(15s)} Bd7 {(44s)} 9. c3 {( 14s)} Na5 {(20s)} 10. Ba2 {
(6s)} c5 {(63s)} 11. Bg5 {(90s)} O-O {(16s)} 12. axb5 {(332s)} axb5 {(5s)} 13.
Na3 {(4s)} Qb8 {(708s)} 14. Nc2 {(145s)} h6 {(94s)} 15. Bh4 {(402s)} c4 {(203s)
} 16. Nb4 {( 1387s)} Be6 {(198s)} 17. Re1 {(18s)} Qb7 {(464s)} 18. d4 {(522s)}
Bg4 {(408s)} 19. Bb1 {(1794s)} Nb3 {(167s)} 20. Rxa8 {(6s)} Rxa8 {(13s)} 21.
Ba2 $4 {(845s) A terrible blunder that should have cost the American the game.}
Nxe4 {(1134s)} 22. Bxe7 {(675s)} {[%tqu "En","White just took the bishop with
Bxe7. The knee-jerk reflex is to take it back, but Topalov's instincts are
impeccable here. What did Black play?","","","e4d2","(284s)",10]} Ned2 $3 {
(284s) This deadly move is winning. The king is now in dire straits.} 23. Bxb3
{(61s)} Nxf3+ $3 {(17s) Black will not be distracted.} 24. gxf3 {(5s)} Bxf3 {
(8s)} 25. Bxd6 {(68s)} ({Any attempt to save the queen leads to mate.} 25. Qd2
$2 Qd7 {and mate cannot be stopped.}) 25... Bxd1 {(475s)} 26. Bxd1 {(4s)} exd4
{(13s)} 27. cxd4 {(6s)} Qd7 {(144s)} 28. Bg3 {(79s)} Qxd4 $2 {(291s) The first
in a series of mistakes now that will eventually allow Giri to build a
fortress.} (28... Re8 $1 29. Rxe8+ Qxe8 30. Kf1 Qe4 31. Nc2 c3 32. bxc3 Qd3+
33. Ke1 Qxc3+ {and the b-pawn is free to march forward.}) 29. Bf3 {( 18s)} Qd2
{(318s)} 30. Rd1 {(294s)} Qxd1+ $2 {(159s)} (30... Qxb2 31. Bxa8 Qxb4 32. Be4
Qe7 33. Re1 Qd7 {and the queen and two passed pawns should end it.}) 31. Bxd1 {
(4s)} Ra1 {(6s)} 32. Kg2 {(3s)} Rxd1 {( 9s) Now things are really not easy and
White manages to hold it with fortress themes in the end.} 33. Be5 {(4s)} f6 {
(49s)} 34. Bc3 {(11s)} Kf7 {(26s)} 35. Nc2 {(51s)} g5 {(126s)} 36. h3 {(21s)}
Kg6 {(134s)} 37. Na3 {(12s)} Rd5 {(11s)} 38. Kf3 {(51s)} f5 {(71s)} 39. Kg3 {
(29s)} f4+ {(174s)} 40. Kg2 {(0s)} Kf5 {(0s)} 41. f3 {(383s)} h5 {(328s)}
1/2-1/2

[Event "4th Sinquefield Cup 2016"]
[Site "Saint Louis"]
[Date "2016.08.06"]
[Round "2"]
[White "Vachier-Lagrave, Maxime"]
[Black "Anand, Viswanathan"]
[Result "0-1"]
[ECO "B10"]
[WhiteElo "2819"]
[BlackElo "2770"]
[Annotator ""]
[PlyCount "92"]
[EventDate "2016.??.??"]
[EventCountry "USA"]
[SourceTitle "playchess.com"]
[Source "ChessBase"]
[TimeControl "40/7200:3600+30"]

1. e4 {(4s)} c6 {(7s)} 2. Nf3 {(125s)} d5 {(10s)} 3. Nc3 {(3s)} Nf6 {(15s)} 4. e5 {(13s)} Ne4 {(8s)} 5.
Ne2 {(383s)} Qb6 {(33s)} 6. d4 {(7s)} e6 {(10s)} 7. Nfg1 {(70s)} f6 {(13s)} 8. f3 {(8s)} Ng5 {(13s)} 9.
exf6 {(8s)} gxf6 {(7s)} 10. f4 {(8s)} Ne4 {(15s)} 11. Ng3 {(24s)} Bd7 {(250s)} 12. Nxe4 {(625s)}
dxe4 {(23s)} 13. c3 {(6s)} Na6 {(548s)} 14. Qh5+ {(360s)} Kd8 {(50s)} 15. Bc4 {(28s)} Kc7 {(1116s)}
16. a4 {(462s)} c5 {(90s)} 17. Ne2 {(27s)} Rd8 {(306s)} 18. Be3 {(536s)} f5 {(393s)} 19. O-O {(209
s)} Kb8 {(346s)} 20. Qf7 {(495s)} Nc7 {(452s)} 21. a5 {(312s)} Qc6 {(10s)} 22. Qf6 {(11s)} Bd6 {(7s)}
23. dxc5 {(18s)} Bxc5 {(247s)} 24. Nd4 {(42s)} Qd6 {(81s)} 25. b4 {(213s)} Qe7 {(246s)} 26. Qh6 {(
1161s)} Bd6 {(1414s)} 27. Rad1 {(68s)} Rhf8 {(49s)} 28. Bf2 {(73s)} Rf6 {(35s)} 29. Qh4 {(123s)}
Nd5 {(282s)} 30. Nxe6 {(409s)} Bxe6 {(70s)} 31. Bxd5 {(11s)} e3 {(63s)} 32. Bxe3 {(16s)} Bxd5 {(9s)}
33. Bxa7+ {(5s)} Kxa7 {(124s)} 34. Qf2+ {(726s)} Bc5 {(32s)} 35. Qxc5+ {(5s)} Qxc5+ {(12s)} 36.
bxc5 {(1s)} Rd7 {(35s)} 37. Rfe1 {(69s)} h6 {(87s)} 38. Kf2 {(147s)} Kb8 {(144s)} 39. c4 {(166s)}
Bc6 {(21s)} 40. Rxd7 {(0s)} Bxd7 {(0s)} 41. Rb1 {(31s)} Ra6 {(485s)} 42. Rb6 {(32s)} Rxa5 {(177s)}
43. Rxh6 {(22s)} Rxc5 {(6s)} 44. h4 {(39s)} Rxc4 {(7s)} 45. g3 {(7s)} Kc7 {(83s)} 46. h5 {(19s)} b5
{(85s)} 0-1

[Event "4th Sinquefield Cup 2016"]
[Site "Saint Louis"]
[Date "2016.08.06"]
[Round "2"]
[White "Ding, Liren"]
[Black "So, Wesley"]
[Result "1/2-1/2"]
[ECO "D37"]
[WhiteElo "2755"]
[BlackElo "2771"]
[Annotator "Albert Silver"]
[PlyCount "70"]
[EventDate "2016.??.??"]
[EventCountry "USA"]
[SourceTitle "playchess.com"]
[Source "ChessBase"]
[TimeControl "40/7200:3600+30"]

1. d4 {(3s)} Nf6 {(7s)} 2. c4 {(4s)} e6 {(5s)} 3. Nf3 {(4s)} d5 {(3s)} 4. Nc3 {
(4s)} Nbd7 {(5s)} 5. Bg5 {(134s)} h6 {(6s)} 6. Bh4 {(3s)} Be7 {(7s)} 7. e3 {
(4s)} O-O {(5s)} 8. Be2 {(2s)} dxc4 {(560s)} 9. Bxc4 {(57s)} c5 {(9s)} 10. O-O
{(5s)} cxd4 {(34s)} 11. Nxd4 {(37s)} Nb6 {(398s)} 12. Bb3 {(1134s)} Nbd5 {
( 162s)} 13. Nxd5 {(263s)} Nxd5 {(4s)} 14. Bg3 {(3s)} Bf6 {(225s)} 15. Rc1 {
(1459s)} Nb6 {(2446s)} 16. Qe2 {(1529s)} Bd7 {(366s)} 17. Nb5 {(5s)} a6 {(912s)
} 18. Nd6 {(395s)} Bc6 {[#] (18s)} 19. Nxb7 $2 {(72s) Overdoing it and
undercalculating.} Bxb7 {(18s)} 20. Bc7 {(4s)} Qe7 {(158s)} 21. Bxb6 {[#] (9s)}
Bxg2 $1 {(4s) This fairly easy move to see was missed by the Chiense player
and now leads him to some trouble.} 22. Kxg2 {(264s) Ding Liren spent nearly 5
minutes staring at his position in disbelief} Qb7+ {( 5s)} 23. Qf3 {(14s)} Qxb6
{(5s)} 24. Rc6 {(2s)} Qb7 {(163s)} 25. Rc2 {(116s)} Qxf3+ {(5s)} 26. Kxf3 {(3s)
} Rfc8 {(8s)} 27. Rfc1 {(4s)} Rxc2 {(6s)} 28. Rxc2 {(3s)} Rb8 {(7s)} 29. Rc6 {
(50s)} a5 {(62s)} 30. Rc5 {(23s)} Ra8 {(5s)} 31. Rb5 {(36s)} Ra7 {(470s)} 32.
Bc2 {(193s)} Kf8 33. a4 {(5s)} Ke7 {( 27s)} 34. b4 {(6s)} Bc3 {(31s)} 35. bxa5
{(27s)} Rxa5 1/2-1/2

[Event "4th Sinquefield Cup 2016"]
[Site "Saint Louis"]
[Date "2016.08.06"]
[Round "2"]
[White "Aronian, Levon"]
[Black "Svidler, Peter"]
[Result "1-0"]
[ECO "D10"]
[WhiteElo "2792"]
[BlackElo "2751"]
[Annotator "Albert Silver"]
[PlyCount "107"]
[EventDate "2016.??.??"]
[EventCountry "USA"]
[SourceTitle "playchess.com"]
[Source "ChessBase"]
[TimeControl "40/7200:3600+30"]

1. d4 {(14s)} d5 {(7s)} 2. c4 {(21s)} c6 {(2s)} 3. Nc3 {(11s)} Nf6 {(6s)} 4. e3
{(11s)} a6 {(8s)} 5. Nf3 {(39s)} b5 {(6s)} 6. b3 {(41s)} Bg4 {(5s)} 7. Qd2 {
(50s)} Nbd7 {(2165s)} 8. Ne5 {(14s)} Nxe5 {( 133s)} 9. dxe5 {(6s)} Nd7 {(3s)}
10. cxd5 {(1510s)} cxd5 {(27s)} 11. Qxd5 {(689s)} e6 {(38s)} 12. Qd4 {(26s)} h5
{(45s)} 13. Bd2 {(936s)} Qb8 {(1428s)} 14. Ne4 {(1023s)} Qxe5 {(186s)} 15. a4 {
(307 s)} Bf5 {(180s)} 16. Ng3 {(96s)} Bc2 {(205s)} 17. axb5 {(765s)} h4 {(48s)}
18. Ne2 {(665s)} Qxb5 {( 173s)} 19. Qc3 {(104s)} Bh7 {(259s)} 20. Nd4 {(83s)}
Qb7 {(20s)} 21. h3 {(211s)} Be7 {(783s)} 22. Be2 {(28s)} O-O {(558s)} 23. Bf3 {
(11s)} Be4 {(6s)} 24. Bxe4 {(83s)} Qxe4 {(4s)} 25. Qc6 {(51s)} Nc5 {(173s)} 26.
Qxe4 {(7s)} Nxe4 {(4s)} 27. Nc6 {(8s)} Bc5 {(160s)} 28. Ra4 {(146s)} Nxd2 {
(43s)} 29. Kxd2 {(5s)} Rfc8 {(2s)} 30. Na5 {(65s)} Be7 {(120s)} 31. Rc1 {(47s)}
Rxc1 {(145s)} 32. Kxc1 {(3s)} Rc8+ {(12s)} 33. Rc4 {(55s)} Rxc4+ {(28s)} 34.
Nxc4 {(4s)} g5 {(134s)} 35. Kd2 {[#] (9s)} f5 $2 {(38s) It is rather
extraoridinary to see a player of Svidler's calibre completely spurn
developing his king and bringing it to play.} 36. Ne5 {(23s)} Bd6 {(20s)} 37.
Nf3 {(7s)} Be7 {(0s)} 38. Ne5 {(4s)} Bd6 {(1s)} 39. Nf3 {(3s)} Be7 {(2s)} 40.
Kd3 {(0s)} Kg7 {(0s)} 41. Ne5 {(135s)} Bb4 $2 {[#] (422s) And now White gets
to play Kc4 with a free tempo.} 42. Kc4 {(189s)} a5 {(513s)} 43. Kb5 {(373 s)}
Kf6 {(241s)} 44. Nc4 {(180s)} Be1 {(138s)} 45. f3 {(10s)} g4 {(32s)} 46. Nxa5 {
(100s)} gxh3 {(23 s)} 47. gxh3 {(4s)} Ke5 {(4s)} 48. Nc4+ {(551s)} Kd5 {(4s)}
49. Nb6+ {(10s)} Kd6 {(33s)} 50. Kc4 {( 23s)} Kc6 {(128s)} 51. Na4 {(64s)} Bf2
{(5s)} 52. e4 {(119s)} fxe4 {(16s)} 53. fxe4 {(4s)} Kd6 {(3s)} 54. Nb2 {(5s)}
1-0

[Event "4th Sinquefield Cup 2016"]
[Site "Saint Louis"]
[Date "2016.08.06"]
[Round "2"]
[White "Nakamura, Hikaru"]
[Black "Giri, Anish"]
[Result "1-0"]
[ECO "D44"]
[WhiteElo "2791"]
[BlackElo "2769"]
[Annotator ""]
[PlyCount "119"]
[EventDate "2016.??.??"]
[EventCountry "USA"]
[SourceTitle "playchess.com"]
[Source "ChessBase"]
[TimeControl "40/7200:3600+30"]

1. Nf3 {(4s)} d5 {(3s)} 2. d4 {(12s)} Nf6 {(4s)} 3. c4 {(5s)} e6 {(3s)} 4. Nc3 {(6s)} c6 {(8s)} 5. Bg5 {(36s)} dxc4 {(15s)} 6. a4 {(30s)} Bb4 {(194s)} 7. e4 {(19s)} Qa5 {(131s)} 8. Bd2 {(345s)} c5 {(143s)} 9. Bxc4 {(111s)} cxd4 {(233s)} 10. Nxd4 {(13s)} O-O {(8s)} 11. Nc2 {(433s)} Nc6 {(297s)} 12. Nxb4 {(315s)} Qxb4 {(25s)} 13. b3 {(3s)} Qe7 {(91s)} 14. O-O {(391s)} Rd8 {(50s)} 15. Re1 {(414s)} Ne5 {(251s)} 16. Bf1 {(497s)} Bd7 {(842s)} 17. Qe2 {(1120s)} Bc6 {(603s)} 18. Bg5 {(643s)} h6 {(137s)} 19. Bh4 {(31s)} Ng6 {(1252s)} 20. Bg3 {(46s)} Rd7 {(61s)} 21. f3 {(113s)} Rad8 {(557s)} 22. Qe3 {(19s)} a6 {(208s)} 23. Rab1 {(143s)} Qb4 {(50s)} 24. Rec1 {(40s)} e5 {(81s)} 25. Be1 {(133s)} Qe7 {(456s)} 26. Na2 {(36s)} Rd4 {(431s)} 27. Ba5 {(292s)} R8d7 {(27s)} 28. Bc3 {(203s)} Bxe4 {(7s)} 29. fxe4 {(10s)} Rxe4 {(2s)} 30. Qa7 {(89s)} b5 {(64s)} 31. Qxa6 {(322s)} Ng4 {(5s)} 32. h3 {(264s)} Qc5+ {(168s)} 33. Kh1 {(12s)} Nf2+ {(381s)} 34. Kh2 {(6s)} Qe3 {(206s)} 35. Re1 {(150s)} Qf4+ {(62s)} 36. g3 {(5s)} Qf5 {(27s)} 37. Bg2 {(246s)} Rh4 {(11s)} 38. Qa8+ {(491s)} Kh7 {(6s)} 39. Qf3 {(3s)} Rxh3+ {(62s)} 40. Kg1 {(0s)} Qxf3 {(0s)} 41. Bxf3 {(0s)} Nd3 {(47s)} 42. Re3 {(26s)} Rxg3+ {(278s)} 43. Kh2 {(35s)} Rxf3 {(40s)} 44. Rxf3 {(0s)} bxa4 {(97s)} 45. bxa4 {(0s)} e4 {(7s)} 46. Rf5 {(76s)} Nh4 {(385s)} 47. Rfb5 {(54s)} Nf4 {(10s)} 48. R5b4 {(907s)} Rd3 {(932s)} 49. Rxe4 {(8s)} g5 {(15s)} 50. Rxf4 {(753s)} gxf4 {(4s)} 51. Rf1 {(4s)} Nf3+ {(82s)} 52. Kh1 {(43s)} Kg6 {(814s)} 53. a5 {(11s)} Kf5 {(357s)} 54. a6 {(61s)} Ng5 {(13s)} 55. a7 {(222s)} Rh3+ {(4s)} 56. Kg1 {(7s)} Rg3+ {(3s)} 57. Kf2 {(5s)} Ne4+ {(7s)} 58. Ke1 {(10s)} Rg8 {(189s)} 59. Bd4 {(5s)} Kg4 {(394s)} 60. Be5 {(67s)} 1-0

[Event "4th Sinquefield Cup 2016"]
[Site "Saint Louis"]
[Date "2016.08.07"]
[Round "3"]
[White "So, Wesley"]
[Black "Aronian, Levon"]
[Result "1/2-1/2"]
[ECO "C54"]
[WhiteElo "2771"]
[BlackElo "2792"]
[PlyCount "57"]
[EventDate "2016.??.??"]
[EventCountry "USA"]
[SourceTitle "playchess.com"]
[Source "ChessBase"]
[TimeControl "40/7200:3600+30"]

1. e4 {[%emt 0:00:07]} e5 {[%emt 0:00:09]} 2. Nf3 {[%emt 0:00:04]} Nc6 {
[%emt 0:00:07]} 3. Bc4 {[%emt 0:00:03]} Bc5 {[%emt 0:00:12]} 4. c3 {[%emt 0:00:
06]} Nf6 {[%emt 0:00:19]} 5. d3 {[%emt 0:00:04]} O-O {[%emt 0:00:27]} 6. O-O {
[%emt 0:00:05]} h6 {[%emt 0:00:25]} 7. d4 {414} Bb6 {[%emt 0:00:08]} 8. dxe5 {
531} Nxe4 {[%emt 0:00:05]} 9. Bd5 {[%emt 0:00:05]} Nxf2 {168} 10. Rxf2 {
[%emt 0:00:08]} d6 {[%emt 0:00:07]} 11. exd6 {2043} Qxd6 {[%emt 0:00:28]} 12.
Bb3 {[%emt 0:00:06]} Bxf2+ {66} 13. Kxf2 {[%emt 0:00:30]} Qf6 {[%emt 0:00:05]}
14. Qd2 {531} g5 {184} 15. Kg1 {314} Bg4 {201} 16. Qf2 {[%emt 0:00:16]} Rfe8 {
666} 17. Be3 {682} Bxf3 {578} 18. Nd2 {[%emt 0:00:20]} Rxe3 {[%emt 0:00:22]}
19. Qxe3 {[%emt 0:00:05]} Bh5 {90} 20. Qh3 {906} Be2 {[%emt 0:00:58]} 21. Re1 {
63} Re8 {75} 22. Bc4 {253} Qd8 {1129} 23. Qxh6 {301} Bxc4 {[%emt 0:00:26]} 24.
Rxe8+ {[%emt 0:00:09]} Qxe8 {[%emt 0:00:03]} 25. Qxg5+ {[%emt 0:00:04]} Kf8 {
[%emt 0:00:05]} 26. Qc5+ {[%emt 0:00:07]} Kg8 {[%emt 0:00:03]} 27. Qg5+ {
[%emt 0:00:04]} Kf8 {[%emt 0:00:05]} 28. Qh6+ {[%emt 0:00:02]} Kg8 {[%emt 0:00:
06]} 29. Qg5+ 1/2-1/2